[Event "Early-Titled-Tuesday-Blitz-April-23-2024"]
[Site "Chess.com"]
[Date "2024.04.23"]
[Round "9"]
[White "Silent-Killer100"]
[Black "RamonManon0g"]
[Result "1/2-1/2"]
[WhiteElo "2599"]
[BlackElo "2466"]
[TimeControl "180+1"]
[EndTime "9:50:16 PDT"]
[Termination "Game drawn by repetition"]

1. f4 {[%clk 0:02:59.3]} 1... Nf6 {[%clk 0:02:59.6]} 2. Nf3 {[%clk 0:02:57.8]}
2... g6 {[%clk 0:02:59.2]} 3. g3 {[%clk 0:02:57.5]} 3... Bg7 {[%clk 0:02:59.3]}
4. Bg2 {[%clk 0:02:58.4]} 4... O-O {[%clk 0:02:59.9]} 5. O-O {[%clk 0:02:59.1]}
5... d5 {[%clk 0:03:00.5]} 6. d3 {[%clk 0:02:59.1]} 6... c5 {[%clk 0:03:00.8]}
7. Qe1 {[%clk 0:02:57.7]} 7... d4 {[%clk 0:03:01.3]} 8. e4 {[%clk 0:02:57]} 8...
dxe3 {[%clk 0:03:01.6]} 9. Qxe3 {[%clk 0:02:55.6]} 9... Qb6 {[%clk 0:02:47.8]}
10. Nc3 {[%clk 0:02:52]} 10... Bd7 {[%clk 0:02:46]} 11. Ne5 {[%clk 0:02:46.6]}
11... Be6 {[%clk 0:02:41.7]} 12. Na4 {[%clk 0:02:39.4]} 12... Qc7 {[%clk
0:02:39.5]} 13. Nxc5 {[%clk 0:02:34.1]} 13... Bc8 {[%clk 0:02:34]} 14. c3 {[%clk
0:02:19.5]} 14... Nc6 {[%clk 0:02:12.6]} 15. Nxc6 {[%clk 0:02:02.3]} 15... bxc6
{[%clk 0:02:13.5]} 16. d4 {[%clk 0:02:02.6]} 16... Ng4 {[%clk 0:02:05.6]} 17.
Qe2 {[%clk 0:01:57.9]} 17... a5 {[%clk 0:02:03.3]} 18. Re1 {[%clk 0:01:52.9]}
18... Re8 {[%clk 0:02:00.4]} 19. h3 {[%clk 0:01:52]} 19... Nf6 {[%clk
0:02:00.1]} 20. Be3 {[%clk 0:01:52]} 20... Nd5 {[%clk 0:01:57.4]} 21. Bf2 {[%clk
0:01:48.2]} 21... Rb8 {[%clk 0:01:51.8]} 22. a3 {[%clk 0:01:15.1]} 22... h5
{[%clk 0:01:43.1]} 23. h4 {[%clk 0:01:11]} 23... Bg4 {[%clk 0:01:38.1]} 24. Qd2
{[%clk 0:01:09.3]} 24... Qb6 {[%clk 0:01:26.7]} 25. b4 {[%clk 0:01:08.3]} 25...
Rbd8 {[%clk 0:01:11.4]} 26. bxa5 {[%clk 0:00:52.2]} 26... Qxa5 {[%clk
0:00:58.9]} 27. Nb7 {[%clk 0:00:51.9]} 27... Qxc3 {[%clk 0:00:59.2]} 28. Qxc3
{[%clk 0:00:52.4]} 28... Nxc3 {[%clk 0:01:00.1]} 29. Nxd8 {[%clk 0:00:52.9]}
29... Rxd8 {[%clk 0:01:00.6]} 30. Rxe7 {[%clk 0:00:48.7]} 30... Ne2+ {[%clk
0:00:55.3]} 31. Kh2 {[%clk 0:00:45.4]} 31... Nxd4 {[%clk 0:00:54.7]} 32. Rae1
{[%clk 0:00:44]} 32... Bf8 {[%clk 0:00:42]} 33. Re8 {[%clk 0:00:40.1]} 33... Rd7
{[%clk 0:00:41.8]} 34. Rb8 {[%clk 0:00:21.9]} 34... Kg7 {[%clk 0:00:41]} 35.
Ree8 {[%clk 0:00:19.8]} 35... Bxa3 {[%clk 0:00:38.3]} 36. Rg8+ {[%clk 0:00:19]}
36... Kf6 {[%clk 0:00:38.1]} 37. Rb6 {[%clk 0:00:16.8]} 37... Nf3+ {[%clk
0:00:31.3]} 38. Bxf3 {[%clk 0:00:16.8]} 38... Bxf3 {[%clk 0:00:32.2]} 39. Re8
{[%clk 0:00:15.5]} 39... Rd2 {[%clk 0:00:31.1]} 40. Kg1 {[%clk 0:00:14.8]} 40...
Rd1+ {[%clk 0:00:31.1]} 41. Re1 {[%clk 0:00:13.1]} 41... Rxe1+ {[%clk
0:00:31.2]} 42. Bxe1 {[%clk 0:00:14]} 42... Bc5+ {[%clk 0:00:31.3]} 43. Bf2
{[%clk 0:00:14.6]} 43... Bxb6 {[%clk 0:00:31.4]} 44. Bxb6 {[%clk 0:00:15.5]}
44... Kf5 {[%clk 0:00:32]} 45. Kf2 {[%clk 0:00:16.4]} 45... Bd5 {[%clk
0:00:31.4]} 46. Ke2 {[%clk 0:00:13.6]} 46... f6 {[%clk 0:00:30.7]} 47. Bf2
{[%clk 0:00:13.4]} 47... g5 {[%clk 0:00:31]} 48. fxg5 {[%clk 0:00:13.2]} 48...
fxg5 {[%clk 0:00:31.9]} 49. hxg5 {[%clk 0:00:14.1]} 49... Kxg5 {[%clk
0:00:32.8]} 50. Ke3 {[%clk 0:00:14.6]} 50... Kg4 {[%clk 0:00:32.9]} 51. Be1
{[%clk 0:00:14]} 51... Kf5 {[%clk 0:00:31.9]} 52. Bf2 {[%clk 0:00:14.3]} 52...
Ke5 {[%clk 0:00:32]} 53. Kd3 {[%clk 0:00:14.6]} 53... Kd6 {[%clk 0:00:31.8]} 54.
Be3 {[%clk 0:00:12]} 54... c5 {[%clk 0:00:30.8]} 55. Bf4+ {[%clk 0:00:12.6]}
55... Kc6 {[%clk 0:00:31.1]} 56. Kc3 {[%clk 0:00:13.5]} 56... Kb5 {[%clk
0:00:30.9]} 57. Be5 {[%clk 0:00:14.1]} 57... Bf3 {[%clk 0:00:30.4]} 58. Bf4
{[%clk 0:00:14.4]} 58... Be2 {[%clk 0:00:30.3]} 59. Be5 {[%clk 0:00:15.2]} 59...
c4 {[%clk 0:00:29.9]} 60. Bf4 {[%clk 0:00:15.5]} 60... Bg4 {[%clk 0:00:30.3]}
61. Be5 {[%clk 0:00:15.9]} 61... Bf3 {[%clk 0:00:30.9]} 62. Bf4 {[%clk
0:00:16.3]} 62... Bg4 {[%clk 0:00:31.5]} 63. Bg5 {[%clk 0:00:16.8]} 63... Be2
{[%clk 0:00:30.6]} 64. Bh4 {[%clk 0:00:17.7]} 64... Kc6 {[%clk 0:00:30.8]} 65.
Bg5 {[%clk 0:00:18.6]} 65... Kd5 {[%clk 0:00:30.6]} 66. Bh4 {[%clk 0:00:19.1]}
66... Ke4 {[%clk 0:00:31.1]} 67. Bd8 {[%clk 0:00:20]} 67... Kf3 {[%clk
0:00:30.3]} 68. Bc7 {[%clk 0:00:20.5]} 68... Kg4 {[%clk 0:00:28.9]} 69. Bb8
{[%clk 0:00:20.9]} 69... Bd3 {[%clk 0:00:28.6]} 70. Bc7 {[%clk 0:00:20.7]} 70...
Kf5 {[%clk 0:00:28.7]} 71. Bb8 {[%clk 0:00:20.5]} 71... Kg4 {[%clk 0:00:29.6]}
72. Bc7 {[%clk 0:00:21.4]} 72... Kf3 {[%clk 0:00:29.9]} 73. Bd6 {[%clk 0:00:21]}
73... Kg4 {[%clk 0:00:30.8]} 74. Bc7 {[%clk 0:00:21.3]} 1/2-1/2

[Event "Early-Titled-Tuesday-Blitz-April-23-2024"]
[Site "Chess.com"]
[Date "2024.04.23"]
[Round "9"]
[White "GlavkonVVS"]
[Black "vasblesk"]
[Result "0-1"]
[WhiteElo "2623"]
[BlackElo "2817"]
[TimeControl "180+1"]
[EndTime "9:50:21 PDT"]
[Termination "vasblesk won by resignation"]

1. c4 {[%clk 0:02:04.5]} 1... c6 {[%clk 0:02:47.6]} 2. Nc3 {[%clk 0:02:04.7]}
2... d5 {[%clk 0:02:47.8]} 3. d4 {[%clk 0:02:05.4]} 3... Nf6 {[%clk 0:02:48]} 4.
Nf3 {[%clk 0:02:05.7]} 4... e6 {[%clk 0:02:48.2]} 5. Bg5 {[%clk 0:02:05.9]} 5...
Nbd7 {[%clk 0:02:48.5]} 6. e3 {[%clk 0:02:06.1]} 6... Qa5 {[%clk 0:02:48]} 7.
Nd2 {[%clk 0:02:05.6]} 7... dxc4 {[%clk 0:02:45.1]} 8. Bxf6 {[%clk 0:02:05.4]}
8... Nxf6 {[%clk 0:02:46]} 9. Nxc4 {[%clk 0:02:05.8]} 9... Qc7 {[%clk
0:02:46.7]} 10. Be2 {[%clk 0:02:05.1]} 10... Bd6 {[%clk 0:02:42.2]} 11. h3
{[%clk 0:02:02.6]} 11... O-O {[%clk 0:02:36]} 12. Rc1 {[%clk 0:02:02.5]} 12...
e5 {[%clk 0:02:32.7]} 13. O-O {[%clk 0:01:58.2]} 13... exd4 {[%clk 0:02:31.9]}
14. Qxd4 {[%clk 0:01:57.7]} 14... Be7 {[%clk 0:02:32.5]} 15. Qf4 {[%clk
0:01:44.7]} 15... Qxf4 {[%clk 0:02:23.8]} 16. exf4 {[%clk 0:01:44.9]} 16... Be6
{[%clk 0:02:24.3]} 17. Na5 {[%clk 0:01:41.2]} 17... Rab8 {[%clk 0:02:20.4]} 18.
Bc4 {[%clk 0:01:40.8]} 18... Bb4 {[%clk 0:02:01.6]} 19. Bxe6 {[%clk 0:01:38.5]}
19... Bxa5 {[%clk 0:01:56.6]} 20. Bb3 {[%clk 0:01:38.2]} 20... Rbd8 {[%clk
0:01:54.9]} 21. Rcd1 {[%clk 0:01:37.1]} 21... Rfe8 {[%clk 0:01:50.1]} 22. g3
{[%clk 0:01:35.3]} 22... Kf8 {[%clk 0:01:49.4]} 23. Rxd8 {[%clk 0:01:33.5]}
23... Rxd8 {[%clk 0:01:50.3]} 24. Rd1 {[%clk 0:01:33.2]} 24... Rxd1+ {[%clk
0:01:47.1]} 25. Nxd1 {[%clk 0:01:33.3]} 25... Ne4 {[%clk 0:01:47.3]} 26. Bc2
{[%clk 0:01:31.5]} 26... Nd6 {[%clk 0:01:43.8]} 27. Kf1 {[%clk 0:01:29.2]} 27...
Bb6 {[%clk 0:01:42.1]} 28. Ke2 {[%clk 0:01:28.8]} 28... Bd4 {[%clk 0:01:42.3]}
29. Bd3 {[%clk 0:01:26.3]} 29... c5 {[%clk 0:01:41.6]} 30. b3 {[%clk 0:01:26]}
30... b5 {[%clk 0:01:39.8]} 31. Ne3 {[%clk 0:01:23.6]} 31... Bxe3 {[%clk
0:01:38.4]} 32. fxe3 {[%clk 0:01:23]} 32... f5 {[%clk 0:01:39.1]} 33. g4 {[%clk
0:01:22.4]} 33... g6 {[%clk 0:01:39.1]} 34. Kf3 {[%clk 0:01:17.1]} 34... Ke7
{[%clk 0:01:37.2]} 35. h4 {[%clk 0:01:13.1]} 35... Ke6 {[%clk 0:01:31.6]} 36. h5
{[%clk 0:01:11.5]} 36... c4 {[%clk 0:01:28.2]} 37. bxc4 {[%clk 0:01:10.4]} 37...
bxc4 {[%clk 0:01:29.1]} 38. Bc2 {[%clk 0:01:10.3]} 38... gxh5 {[%clk 0:00:57.6]}
39. gxh5 {[%clk 0:01:04.6]} 39... h6 {[%clk 0:00:54]} 40. a4 {[%clk 0:00:54.9]}
40... Kd5 {[%clk 0:00:49.4]} 41. a5 {[%clk 0:00:40.2]} 41... Kc5 {[%clk
0:00:26.1]} 42. e4 {[%clk 0:00:28]} 42... fxe4+ {[%clk 0:00:27]} 43. Bxe4 {[%clk
0:00:28.1]} 43... Kd4 {[%clk 0:00:27.7]} 44. Bb1 {[%clk 0:00:22.4]} 44... c3
{[%clk 0:00:24.8]} 45. f5 {[%clk 0:00:20.9]} 45... Ke5 {[%clk 0:00:25.2]} 46.
Ke3 {[%clk 0:00:18.3]} 46... Nxf5+ {[%clk 0:00:25.1]} 47. Kd3 {[%clk 0:00:18.6]}
47... Ng3 {[%clk 0:00:25.5]} 48. Kxc3 {[%clk 0:00:18.9]} 48... Nxh5 {[%clk
0:00:26.4]} 49. Kb4 {[%clk 0:00:19.3]} 49... Kd6 {[%clk 0:00:24.6]} 50. Kb5
{[%clk 0:00:19.2]} 50... Kc7 {[%clk 0:00:24.2]} 51. Kc5 {[%clk 0:00:18.6]} 51...
Nf6 {[%clk 0:00:22.3]} 52. Bf5 {[%clk 0:00:18.2]} 52... h5 {[%clk 0:00:22.1]}
53. Bh3 {[%clk 0:00:18]} 53... h4 {[%clk 0:00:21.7]} 54. Bg2 {[%clk 0:00:18.1]}
54... Nh5 {[%clk 0:00:21.7]} 55. Kd4 {[%clk 0:00:17.4]} 55... Kd6 {[%clk
0:00:17.9]} 56. Bf3 {[%clk 0:00:16.4]} 56... Nf6 {[%clk 0:00:17.5]} 57. a6
{[%clk 0:00:15]} 57... Ke6 {[%clk 0:00:15.7]} 58. Bg2 {[%clk 0:00:13.8]} 58...
Nd7 {[%clk 0:00:11.6]} 59. Bh3+ {[%clk 0:00:12.8]} 59... Kd6 {[%clk 0:00:12.2]}
60. Kc4 {[%clk 0:00:12.6]} 60... Ne5+ {[%clk 0:00:10.9]} 61. Kb5 {[%clk
0:00:12.7]} 61... Nd3 {[%clk 0:00:10.2]} 62. Kc4 {[%clk 0:00:11.3]} 62... Nf2
{[%clk 0:00:10.4]} 63. Bg2 {[%clk 0:00:11]} 63... h3 {[%clk 0:00:10.9]} 64. Bf3
{[%clk 0:00:10.8]} 64... h2 {[%clk 0:00:11.5]} 65. Kd4 {[%clk 0:00:09.6]} 65...
h1=Q {[%clk 0:00:11.8]} 66. Bxh1 {[%clk 0:00:09.6]} 66... Nxh1 {[%clk
0:00:12.7]} 0-1

[Event "Early-Titled-Tuesday-Blitz-April-23-2024"]
[Site "Chess.com"]
[Date "2024.04.23"]
[Round "9"]
[White "RobertoJBM"]
[Black "ProtectiveCarrot"]
[Result "0-1"]
[WhiteElo "2804"]
[BlackElo "2398"]
[TimeControl "180+1"]
[EndTime "9:50:23 PDT"]
[Termination "ProtectiveCarrot won on time"]

1. d4 {[%clk 0:03:00.9]} 1... a6 {[%clk 0:02:54.6]} 2. e4 {[%clk 0:02:59.1]}
2... e6 {[%clk 0:02:54.5]} 3. Nf3 {[%clk 0:02:58.3]} 3... d5 {[%clk 0:02:54.7]}
4. Nbd2 {[%clk 0:02:57]} 4... c5 {[%clk 0:02:51.8]} 5. exd5 {[%clk 0:02:56.5]}
5... exd5 {[%clk 0:02:51.4]} 6. c3 {[%clk 0:02:52.5]} 6... Nc6 {[%clk 0:02:51]}
7. dxc5 {[%clk 0:02:50.5]} 7... Bxc5 {[%clk 0:02:51.9]} 8. Nb3 {[%clk
0:02:50.6]} 8... Ba7 {[%clk 0:02:48]} 9. Be2 {[%clk 0:02:44.3]} 9... Nge7 {[%clk
0:02:47.9]} 10. O-O {[%clk 0:02:43.3]} 10... O-O {[%clk 0:02:48.3]} 11. Nfd4
{[%clk 0:02:38.7]} 11... Re8 {[%clk 0:02:42.7]} 12. Be3 {[%clk 0:02:34.6]} 12...
Ne5 {[%clk 0:02:37.9]} 13. Nc2 {[%clk 0:02:12.3]} 13... Bb8 {[%clk 0:02:21.6]}
14. Re1 {[%clk 0:01:56.8]} 14... Nc4 {[%clk 0:02:16.8]} 15. Bxc4 {[%clk
0:01:56.3]} 15... dxc4 {[%clk 0:02:17.7]} 16. Qxd8 {[%clk 0:01:55.2]} 16... Rxd8
{[%clk 0:02:17.4]} 17. Na5 {[%clk 0:01:40.5]} 17... b5 {[%clk 0:01:56.5]} 18.
Bg5 {[%clk 0:01:25.4]} 18... f6 {[%clk 0:01:56.6]} 19. Rxe7 {[%clk 0:01:23.5]}
19... fxg5 {[%clk 0:01:56.4]} 20. Nc6 {[%clk 0:01:21.7]} 20... Bd6 {[%clk
0:01:50]} 21. Re2 {[%clk 0:01:00.5]} 21... Rf8 {[%clk 0:01:44.6]} 22. Ne7+
{[%clk 0:00:58.5]} 22... Bxe7 {[%clk 0:01:43.1]} 23. Rxe7 {[%clk 0:00:59.4]}
23... Rf7 {[%clk 0:01:36.7]} 24. Re8+ {[%clk 0:00:52]} 24... Rf8 {[%clk
0:01:36.7]} 25. Rae1 {[%clk 0:00:47.3]} 25... Bd7 {[%clk 0:01:32.2]} 26. R8e7
{[%clk 0:00:43]} 26... Rf7 {[%clk 0:01:30.6]} 27. f3 {[%clk 0:00:32.5]} 27...
Rb8 {[%clk 0:01:27.1]} 28. a3 {[%clk 0:00:27.9]} 28... a5 {[%clk 0:01:24.1]} 29.
R7e5 {[%clk 0:00:22.2]} 29... h6 {[%clk 0:01:22]} 30. h3 {[%clk 0:00:21.9]}
30... Rb6 {[%clk 0:01:15.1]} 31. Rd1 {[%clk 0:00:21.8]} 31... Kf8 {[%clk
0:00:53.6]} 32. Rd4 {[%clk 0:00:21]} 32... Rf5 {[%clk 0:00:35.6]} 33. Rxf5+
{[%clk 0:00:20]} 33... Bxf5 {[%clk 0:00:36.2]} 34. Ne3 {[%clk 0:00:20.9]} 34...
Bd3 {[%clk 0:00:36]} 35. Kf2 {[%clk 0:00:16.8]} 35... Kf7 {[%clk 0:00:32.4]} 36.
h4 {[%clk 0:00:16.4]} 36... gxh4 {[%clk 0:00:31.9]} 37. Rxh4 {[%clk 0:00:17.3]}
37... g5 {[%clk 0:00:28.6]} 38. Rd4 {[%clk 0:00:16.7]} 38... Ke6 {[%clk
0:00:26.1]} 39. g4 {[%clk 0:00:14.7]} 39... Rb7 {[%clk 0:00:18.5]} 40. b4 {[%clk
0:00:13.9]} 40... axb4 {[%clk 0:00:16.8]} 41. axb4 {[%clk 0:00:14.5]} 41... Ra7
{[%clk 0:00:17.3]} 42. Kg3 {[%clk 0:00:09.9]} 42... Ra2 {[%clk 0:00:16.8]} 43.
f4 {[%clk 0:00:08.4]} 43... Re2 {[%clk 0:00:14.5]} 44. Kf3 {[%clk 0:00:08.6]}
44... gxf4 {[%clk 0:00:13.8]} 45. Kxf4 {[%clk 0:00:07.8]} 45... Rf2+ {[%clk
0:00:13.5]} 46. Kg3 {[%clk 0:00:08]} 46... Re2 {[%clk 0:00:13.5]} 47. Nd5 {[%clk
0:00:07]} 47... Rc2 {[%clk 0:00:09.9]} 48. Nc7+ {[%clk 0:00:04.9]} 48... Ke5
{[%clk 0:00:09.8]} 49. Nxb5 {[%clk 0:00:05.3]} 49... Rxc3 {[%clk 0:00:09.3]} 50.
Rf4 {[%clk 0:00:04.6]} 50... Rb3 {[%clk 0:00:07.8]} 51. Nd4 {[%clk 0:00:02.2]}
51... Ra3 {[%clk 0:00:06.2]} 52. Nb5 {[%clk 0:00:01.4]} 52... Rb3 {[%clk
0:00:04.1]} 53. Nd4 {[%clk 0:00:01.7]} 53... Ra3 {[%clk 0:00:04.2]} 54. Nf3+
{[%clk 0:00:02.3]} 54... Ke6 {[%clk 0:00:01.5]} 55. Rd4 {[%clk 0:00:02.4]} 55...
Be2 {[%clk 0:00:01.2]} 56. Re4+ {[%clk 0:00:01.5]} 56... Kd5 {[%clk 0:00:01.9]}
57. Rxe2 {[%clk 0:00:02.4]} 57... c3 {[%clk 0:00:02.4]} 58. Re5+ {[%clk
0:00:01.3]} 58... Kc4 {[%clk 0:00:02.5]} 0-1

[Event "Early-Titled-Tuesday-Blitz-April-23-2024"]
[Site "Chess.com"]
[Date "2024.04.23"]
[Round "9"]
[White "Ginger_GM"]
[Black "KhazhatulyAlikhan"]
[Result "1-0"]
[WhiteElo "2671"]
[BlackElo "2489"]
[TimeControl "180+1"]
[EndTime "9:50:36 PDT"]
[Termination "Ginger_GM won by resignation"]

1. e4 {[%clk 0:03:00.9]} 1... c5 {[%clk 0:02:57.4]} 2. a3 {[%clk 0:02:55.4]}
2... g6 {[%clk 0:02:48.7]} 3. Nc3 {[%clk 0:02:49.6]} 3... Bg7 {[%clk 0:02:47.8]}
4. f4 {[%clk 0:02:49.6]} 4... Nc6 {[%clk 0:02:47.2]} 5. Nf3 {[%clk 0:02:49.5]}
5... d6 {[%clk 0:02:42.9]} 6. Bb5 {[%clk 0:02:48.4]} 6... Bd7 {[%clk 0:02:38.1]}
7. O-O {[%clk 0:02:46.2]} 7... Nd4 {[%clk 0:02:25.7]} 8. Bc4 {[%clk 0:02:42.6]}
8... Nf6 {[%clk 0:01:52.8]} 9. d3 {[%clk 0:02:31.9]} 9... Bg4 {[%clk 0:01:45.5]}
10. Ne2 {[%clk 0:02:28.6]} 10... Nxf3+ {[%clk 0:01:31.3]} 11. gxf3 {[%clk
0:02:28.4]} 11... Bh3 {[%clk 0:01:31.9]} 12. Rf2 {[%clk 0:02:25.2]} 12... Qd7
{[%clk 0:01:24.1]} 13. a4 {[%clk 0:02:20.3]} 13... a6 {[%clk 0:01:23.9]} 14. Kh1
{[%clk 0:02:16.8]} 14... O-O {[%clk 0:01:16.7]} 15. Ng1 {[%clk 0:02:13]} 15...
Be6 {[%clk 0:01:16.2]} 16. a5 {[%clk 0:02:07.5]} 16... d5 {[%clk 0:01:04.5]} 17.
exd5 {[%clk 0:01:54.9]} 17... Bxd5 {[%clk 0:01:04.9]} 18. Qe2 {[%clk 0:01:48.7]}
18... Bxc4 {[%clk 0:00:39.5]} 19. dxc4 {[%clk 0:01:48.7]} 19... Rfd8 {[%clk
0:00:37.6]} 20. Be3 {[%clk 0:01:48.1]} 20... Rac8 {[%clk 0:00:38.2]} 21. Ra3
{[%clk 0:01:30.3]} 21... Qf5 {[%clk 0:00:26.9]} 22. Rb3 {[%clk 0:01:28.2]} 22...
Rd7 {[%clk 0:00:26.5]} 23. Rg2 {[%clk 0:01:15.4]} 23... h6 {[%clk 0:00:25.8]}
24. Qf2 {[%clk 0:01:08.7]} 24... Nh5 {[%clk 0:00:25.2]} 25. Rg4 {[%clk
0:01:07.2]} 25... Nf6 {[%clk 0:00:23.9]} 26. Rg2 {[%clk 0:01:05]} 26... Nh5
{[%clk 0:00:24.3]} 27. Rg4 {[%clk 0:00:59]} 27... Nf6 {[%clk 0:00:24.1]} 28. Rh4
{[%clk 0:00:54.5]} 28... Nh5 {[%clk 0:00:20.6]} 29. Kg2 {[%clk 0:00:47.9]} 29...
Bf6 {[%clk 0:00:20.8]} 30. Rg4 {[%clk 0:00:47.5]} 30... Kh7 {[%clk 0:00:19.4]}
31. Rb6 {[%clk 0:00:45.1]} 31... Bg7 {[%clk 0:00:13.8]} 32. Ne2 {[%clk
0:00:41.3]} 32... Qxc2 {[%clk 0:00:11]} 33. Ng3 {[%clk 0:00:41.6]} 33... Qxf2+
{[%clk 0:00:10.6]} 34. Kxf2 {[%clk 0:00:42.1]} 34... Nf6 {[%clk 0:00:11]} 35.
Rh4 {[%clk 0:00:42.7]} 35... Ne8 {[%clk 0:00:11]} 36. f5 {[%clk 0:00:42.2]}
36... Nd6 {[%clk 0:00:09.7]} 37. fxg6+ {[%clk 0:00:42.2]} 37... fxg6 {[%clk
0:00:10.4]} 38. b3 {[%clk 0:00:42.6]} 38... h5 {[%clk 0:00:09.3]} 39. Ne4 {[%clk
0:00:31.8]} 39... Nf5 {[%clk 0:00:09]} 40. Ng5+ {[%clk 0:00:32.1]} 40... Kh8
{[%clk 0:00:06.8]} 41. Re4 {[%clk 0:00:31.4]} 41... Bf6 {[%clk 0:00:06.8]} 42.
Ne6 {[%clk 0:00:30.5]} 42... Kg8 {[%clk 0:00:06.7]} 43. Nxc5 {[%clk 0:00:30.2]}
43... Rdc7 {[%clk 0:00:05.9]} 44. Ne6 {[%clk 0:00:30.2]} 44... Rd7 {[%clk
0:00:06.1]} 45. Nc5 {[%clk 0:00:28.9]} 45... Rdc7 {[%clk 0:00:06]} 46. Nd3
{[%clk 0:00:29.2]} 46... Nxe3 {[%clk 0:00:06]} 47. Kxe3 {[%clk 0:00:29.1]} 47...
Kf7 {[%clk 0:00:06.5]} 48. Nf4 {[%clk 0:00:29]} 48... Rd7 {[%clk 0:00:05.4]} 49.
Nd5 {[%clk 0:00:29]} 49... Rc6 {[%clk 0:00:05.2]} 50. f4 {[%clk 0:00:26.1]}
50... Rxb6 {[%clk 0:00:05.5]} 51. axb6 {[%clk 0:00:25.6]} 51... Rd6 {[%clk
0:00:05.6]} 52. c5 {[%clk 0:00:25.4]} 52... Rc6 {[%clk 0:00:05.2]} 53. b4 {[%clk
0:00:24.7]} 53... e6 {[%clk 0:00:03.7]} 54. Nc7 {[%clk 0:00:24.2]} 54... a5
{[%clk 0:00:02.1]} 55. Kd3 {[%clk 0:00:20.6]} 55... axb4 {[%clk 0:00:02.1]} 56.
Kc4 {[%clk 0:00:20.8]} 56... Be7 {[%clk 0:00:02.8]} 57. Re5 {[%clk 0:00:21.1]}
57... Bf6 {[%clk 0:00:02.9]} 58. Re2 {[%clk 0:00:15.3]} 58... Be7 {[%clk
0:00:03.1]} 59. Na6 {[%clk 0:00:13.4]} 59... Bf8 {[%clk 0:00:02.8]} 60. Kxb4
{[%clk 0:00:13.1]} 60... Be7 {[%clk 0:00:02.8]} 61. Kb5 {[%clk 0:00:12.4]} 61...
Kf6 {[%clk 0:00:02.9]} 62. Re5 {[%clk 0:00:12]} 62... Kf7 {[%clk 0:00:03.3]} 63.
Nb4 {[%clk 0:00:12.1]} 63... Rc8 {[%clk 0:00:02.7]} 64. c6 {[%clk 0:00:12.6]}
64... Bxb4 {[%clk 0:00:03]} 65. cxb7 {[%clk 0:00:12.5]} 65... Rb8 {[%clk
0:00:03]} 66. Kxb4 {[%clk 0:00:12.9]} 66... Rxb7 {[%clk 0:00:03.6]} 67. Kb5
{[%clk 0:00:13.5]} 67... Kf6 {[%clk 0:00:01.9]} 68. Kc6 {[%clk 0:00:13.7]} 68...
Rb8 {[%clk 0:00:02]} 69. h4 {[%clk 0:00:13.6]} 69... Rb7 {[%clk 0:00:02.9]} 70.
Kxb7 {[%clk 0:00:13.7]} 1-0

[Event "Early-Titled-Tuesday-Blitz-April-23-2024"]
[Site "Chess.com"]
[Date "2024.04.23"]
[Round "9"]
[White "AlexanderKing"]
[Black "Jojo_898"]
[Result "1/2-1/2"]
[WhiteElo "2575"]
[BlackElo "2451"]
[TimeControl "180+1"]
[EndTime "9:50:36 PDT"]
[Termination "Game drawn by repetition"]

1. g3 {[%clk 0:03:00.9]} 1... Nf6 {[%clk 0:02:59]} 2. Bg2 {[%clk 0:03:01.2]}
2... d5 {[%clk 0:02:46.8]} 3. Nf3 {[%clk 0:03:00.6]} 3... c6 {[%clk 0:02:46.3]}
4. c4 {[%clk 0:02:59.2]} 4... g6 {[%clk 0:02:44]} 5. O-O {[%clk 0:02:56.5]} 5...
Bg7 {[%clk 0:02:44.2]} 6. d4 {[%clk 0:02:55.6]} 6... O-O {[%clk 0:02:43.9]} 7.
Qb3 {[%clk 0:02:54.7]} 7... Qb6 {[%clk 0:02:35.5]} 8. Nc3 {[%clk 0:02:47.5]}
8... dxc4 {[%clk 0:02:20.4]} 9. Qxc4 {[%clk 0:02:46.9]} 9... Be6 {[%clk
0:02:20.2]} 10. Qa4 {[%clk 0:02:42.9]} 10... Nbd7 {[%clk 0:02:08.2]} 11. e4
{[%clk 0:02:41.9]} 11... Rfd8 {[%clk 0:01:42.4]} 12. h3 {[%clk 0:02:19.2]} 12...
a5 {[%clk 0:01:40.7]} 13. Rb1 {[%clk 0:02:14.6]} 13... Qb4 {[%clk 0:01:36.8]}
14. Qc2 {[%clk 0:02:13.9]} 14... a4 {[%clk 0:01:28.6]} 15. Be3 {[%clk
0:01:54.2]} 15... Nb6 {[%clk 0:01:22.9]} 16. Rfd1 {[%clk 0:01:25.3]} 16... Nc4
{[%clk 0:01:21.7]} 17. Bc1 {[%clk 0:01:25.4]} 17... Qa5 {[%clk 0:01:08.5]} 18.
Ng5 {[%clk 0:00:41.8]} 18... Bc8 {[%clk 0:00:52.9]} 19. Bf1 {[%clk 0:00:21.8]}
19... b5 {[%clk 0:00:49.9]} 20. Bg2 {[%clk 0:00:21.8]} 20... h6 {[%clk
0:00:44.4]} 21. Nf3 {[%clk 0:00:21.3]} 21... Nb6 {[%clk 0:00:42.7]} 22. b3
{[%clk 0:00:13.7]} 22... b4 {[%clk 0:00:30]} 23. Nxa4 {[%clk 0:00:12.8]} 23...
Nxa4 {[%clk 0:00:30.3]} 24. bxa4 {[%clk 0:00:13.7]} 24... Qxa4 {[%clk 0:00:31]}
25. Qxa4 {[%clk 0:00:10.4]} 25... Rxa4 {[%clk 0:00:31.9]} 26. Ne5 {[%clk
0:00:11.1]} 26... Bd7 {[%clk 0:00:24.6]} 27. Rd2 {[%clk 0:00:03.4]} 27... Be8
{[%clk 0:00:22.8]} 28. Rdb2 {[%clk 0:00:01.8]} 28... Rxd4 {[%clk 0:00:21.6]} 29.
Be3 {[%clk 0:00:02.1]} 29... Rd6 {[%clk 0:00:16.6]} 30. Rxb4 {[%clk 0:00:02.4]}
30... Rxb4 {[%clk 0:00:16.2]} 31. Rxb4 {[%clk 0:00:03.3]} 31... Rd1+ {[%clk
0:00:16.6]} 32. Kh2 {[%clk 0:00:03.3]} 32... Nxe4 {[%clk 0:00:11.8]} 33. Rxe4
{[%clk 0:00:02.7]} 33... f6 {[%clk 0:00:08.3]} 34. Nf3 {[%clk 0:00:01.9]} 34...
e5 {[%clk 0:00:04.3]} 35. Ra4 {[%clk 0:00:02]} 35... Bf7 {[%clk 0:00:04.6]} 36.
Ra8+ {[%clk 0:00:02.4]} 36... Kh7 {[%clk 0:00:04.7]} 37. a4 {[%clk 0:00:02.6]}
37... f5 {[%clk 0:00:03.1]} 38. a5 {[%clk 0:00:02.3]} 38... g5 {[%clk
0:00:03.6]} 39. Bxg5 {[%clk 0:00:02]} 39... hxg5 {[%clk 0:00:03.2]} 40. Nxg5+
{[%clk 0:00:02.9]} 40... Kg6 {[%clk 0:00:04]} 41. Nxf7 {[%clk 0:00:03.2]} 41...
Kxf7 {[%clk 0:00:04.8]} 42. Bxc6 {[%clk 0:00:03.3]} 42... Ra1 {[%clk 0:00:03.7]}
43. a6 {[%clk 0:00:03.3]} 43... Ra2 {[%clk 0:00:04.1]} 44. Kg2 {[%clk
0:00:03.1]} 44... e4 {[%clk 0:00:04.5]} 45. a7 {[%clk 0:00:02.7]} 45... Bd4
{[%clk 0:00:05.1]} 46. g4 {[%clk 0:00:01.5]} 46... f4 {[%clk 0:00:03.6]} 47. h4
{[%clk 0:00:01.3]} 47... Rxf2+ {[%clk 0:00:03.6]} 48. Kh3 {[%clk 0:00:02.2]}
48... Ra2 {[%clk 0:00:02.8]} 49. g5 {[%clk 0:00:03.1]} 49... e3 {[%clk
0:00:03.1]} 50. g6+ {[%clk 0:00:02.2]} 50... Kxg6 {[%clk 0:00:03.2]} 51. Rg8+
{[%clk 0:00:02.5]} 51... Kf7 {[%clk 0:00:03.7]} 52. a8=Q {[%clk 0:00:03.4]}
52... Rxa8 {[%clk 0:00:03.6]} 53. Rxa8 {[%clk 0:00:04.3]} 53... e2 {[%clk
0:00:04.3]} 54. Bd5+ {[%clk 0:00:02.7]} 54... Kf6 {[%clk 0:00:02.9]} 55. Re8
{[%clk 0:00:02.7]} 55... Be3 {[%clk 0:00:03.1]} 56. Rf8+ {[%clk 0:00:01.2]}
56... Kg7 {[%clk 0:00:02.8]} 57. Rf7+ {[%clk 0:00:01.1]} 57... Kg6 {[%clk
0:00:02.9]} 58. h5+ {[%clk 0:00:01.2]} 58... Kxh5 {[%clk 0:00:03.5]} 59. Bf3+
{[%clk 0:00:01.7]} 59... Kg6 {[%clk 0:00:03]} 60. Bxe2 {[%clk 0:00:01.8]} 60...
Kxf7 {[%clk 0:00:03.7]} 61. Kg4 {[%clk 0:00:02.7]} 61... Kf6 {[%clk 0:00:04.2]}
62. Kf3 {[%clk 0:00:03.6]} 62... Ke6 {[%clk 0:00:05]} 63. Bf1 {[%clk 0:00:04.3]}
63... Kf6 {[%clk 0:00:05.9]} 64. Be2 {[%clk 0:00:05.2]} 64... Ke6 {[%clk
0:00:06.8]} 65. Bf1 {[%clk 0:00:06]} 65... Kf6 {[%clk 0:00:07.7]} 66. Be2 {[%clk
0:00:06.9]} 1/2-1/2